{"text_format":"1","workbook":"xlsx","n_sheets":4,"sheets":["Главная","Лист1","Лист1 (2)","Личный файл"],"not_rendered":{"charts":0,"images":39,"macros":1,"external_links":0,"defined_names":0,"comments":0,"pivot_tables":0},"unopened":[],"bounds":{"document_bytes":16777216,"sheet_cells":100000,"rows_first":2000,"rows_last":500,"rows_between":2000,"halvings":0,"cell_chars":16384,"cell_head_chars":4096},"cells_cut":0,"cells_raw":0,"read":"whole","date_system":"1900"}

{"sheet":"Главная","index":0,"n_rows":64,"n_cols":19,"rows_kept":64,"cut":false,"hidden":false,"merged":[[1,3,1,4],[2,1,3,1],[4,1,5,1],[6,1,7,1],[8,1,9,1],[4,2,5,2],[8,2,9,2],[4,3,5,4],[14,1,15,1],[14,2,15,2],[12,1,13,1],[2,0,13,0],[2,2,3,2],[2,3,3,4],[10,1,11,1],[6,2,7,2],[6,3,7,4],[14,3,14,4],[15,3,15,4],[8,3,9,4],[10,3,11,4],[12,3,13,4],[10,2,11,2],[12,2,13,2]]}
[" "]
["Учебный год","Содержание \"личного файла\" преподавателя","Заполняет преподаватель","Заполняет администрация"]
[null,"1. ОБЩИЕ СВЕДЕНИЯ  О ПРЕПОДАВАТЕЛЕ"]
[]
[null,"2. ПРОВЕДЕНИЕ ИССЛЕДОВАТЕЛЬСКОЙ, ИННОВАЦИОННОЙ, НАУЧНО-МЕТОДИЧЕСКОЙ ДЕЯТЕЛЬНОСТИ"]
[]
[null,"3. ВЛАДЕНИЕ СОВРЕМЕННЫМИ ОБРАЗОВАТЕЛЬНЫМИ ТЕХНОЛОГИЯМИ И МЕТОДИКАМИ"]
[]
[null,"4. ВКЛАД В ПОВЫШЕНИЕ КАЧЕСТВА ОБРАЗОВАНИЯ, \nРАСПРОСТРАНЕНИЕ  ПЕРЕДОВОГО ПЕДАГОГИЧЕСКОГО  ОПЫТА\n"]
[]
[null,"5. РЕЗУЛЬТАТЫ ОСВОЕНИЯ ОБУЧАЮЩИМИСЯ ОБРАЗОВАТЕЛЬНЫХ ПРОГРАММ"]
[]
[null,"6. УРОВЕНЬ ПРОФЕССИОНАЛЬНОГО МАСТЕРСТВА ПЕДАГОГА"]
[]
[null,"7. НАГРАДЫ, ПООЩРЕНИЯ ЗА УСПЕХИ В ПРОФЕССИОНАЛЬНОЙ ДЕЯТЕЛЬНОСТИ"]
[]
[]
[]
[]
[]
[]
[]
[]
[]
[]
[]
[]
[]
[]
[]
[]
[]
[]
[]
[]
[]
[]
[]
[]
[]
[]
[]
[]
[]
[]
[]
[]
[]
[]
[]
[]
[]
[null,null,null,null,null,null,null,null,"ПЦК русской словесности"]
[null,null,null,null,null,null,null,null,"ПЦК литературы"]
[null,null,null,null,null,null,null,null,"ПЦК математики"]
[null,null,null,null,null,null,null,null,"ПЦК естествознания"]
[null,null,null,null,null,null,null,null,"ПЦК информатики",null,null,null,null,null,null,null,null,null,"Районного уровня. 5 б."]
[null,null,null,null,null,null,null,null,"ПЦК гуманитарных культур",null,null,null,null,null,null,null,null,null,"Городского уровня. 15 б."]
[null,null,null,null,null,null,null,null,"ПЦК психологии",null,null,null,null,null,null,null,null,null,"Всероссийского/международного уровня.         30 баллов."]
[null,null,null,null,null,null,null,null,"ПЦК педагогики",null,null,null,null,null,null,null,null,null,"Ведение секций. 30 б."]
[null,null,null,null,null,null,null,null,"ПЦК иностранных языков"]
[null,null,null,null,null,null,null,null,"ПЦК музыки"]
[null,null,null,null,null,null,null,null,"ПЦК физической культуры"]
[null,null,null,null,null,null,null,null,"ПЦК изобразительного искусства и художественного труда"]

{"sheet":"Лист1","index":1,"n_rows":32,"n_cols":5,"rows_kept":32,"cut":false,"hidden":true,"merged":[[29,0,29,4],[1,0,1,4],[6,0,6,4],[11,0,11,4],[14,0,14,4],[24,0,24,4]]}
["№","Структура файла","Содержание","Оценка","  Отв. за заполнение"]
["1. ОБЩИЕ СВЕДЕНИЯ  О ПРЕПОДАВАТЕЛЕ"]
[]
[]
[]
[1.1000000000000001,"(ФИО, преподаваемые дисциплины, кафедра, ПЦК, образование,  педагогический стаж, научная степень, должность,)."]
["2. МЕТОДИЧЕСКАЯ РАБОТА"]
[2.1,"Результаты работы над методической темой  (разработка метод. темы,  проект, лаборатория)","Название, роль, функции, документ, ссылка"]
[2.2000000000000002,"Повышение квалификации (в какой области, место, время, сертификат).","Название, место, время, сертификат, ссылка "]
[2.2999999999999998,"Результаты оценки качества открытого занятия (на основе отзыва эксперта по аттестации).","Название, отзыв, ссылка"]
[2.4,"Результаты мониторинга \"удовлетворенности потребителей\" образовательных услуг, проведенного по утвержденной методике","Удовлетворенность студентов:                                                   содержанием учебного процесса;                                                  методикой преподавания;                                       психологическим климатом"]
["3. ВЛАДЕНИЕ СОВРЕМЕННЫМИ ОБРАЗОВАТЕЛЬНЫМИ ТЕХНОЛОГИЯМИ И МЕТОДИКАМИ"]
[3.1,"Результаты использования современных технологий, нетрадиционных видов работы, исследовательских методов обучения, электронных ресурсов, элементов дистанционного обучения в образовательном процессе ","Название технологии, вид нетрадиционной деятельности, название сайта, предмет, курс, тема, ссылка."]
[3.2,"Проведение открытых занятий в декаду инноватики, метод. неделю, ведение секции на Некрасовских чтениях  (когда, название)","Тема, технология, сертификат, ссылка"]
["4. ВКЛАД В ПОВЫШЕНИЕ КАЧЕСТВА ОБРАЗОВАНИЯ, РАСПРОСТРАНЕНИЕ  СОБСТВЕННОГО ОПЫТА"]
[4.0999999999999996,"Участие  в реализации ОЭР, образовательной программы ресурсного центра. (функции преподавателя)","Приказ, распоряжение, материалы, ссылка. "]
[4.2,"Тьюторское сопровождение","Приказ, распоряжение, ссылка."]
[4.3,"Публикации статей, собственных методических разработок ","Количество, список по форме за последний год, уровень, ссылка."]
[4.4000000000000004,"Защита диссертации, второе высшее образование"]
[4.5,"Разработка  учебно-методического обеспечения образовательного процесса (кейсы для ДО, тесты, пособия) и участие в фестивале методических пособий","Программы дисциплин, модулей,  учебно-методические материалы (название, назначение)"]
[4.5999999999999996,"Выступления на научно-практических  конференциях, семинарах разного уровня,  секциях, круглых столах, проведение мастер-классов, семинаров, ведение секций.","Когда, где, название, уровень, тема выступления, сертификат, ссылка."]
[4.7,"Результаты участия в профессиональных конкурсах ","Когда, где, название, результат, сертификат, ссылка."]
[4.8,"Общественная активность педагога  (участие в СНО, СПА, ученом совете, методическом совете, экспертном совете, творческой группе, председатель ПЦК, совете колледжа)","Копии приказов, распоряжений , ссылка"]
[4.9000000000000004,"Исполнение функций наставника, куратора группы ","Копия локального акта, ссылка"]
["5. РЕЗУЛЬТАТЫ ОСВОЕНИЯ ОБУЧАЮЩИМИСЯ ОБРАЗОВАТЕЛЬНЫХ ПРОГРАММ"]
[5.0999999999999996,"Качество знаний обучающихся по результатам ГИА (экзамены, ВКР) и внешний мониторинг","Кк/о = "]
[5.2,"Результаты участия студентов, подготовленных данным преподавателем или в творческой группе совместно с другими преп.  в предметных олимпиадах","Кто, когда, результат, уровень, подтверждение, ссылка"]
[5.3,"Результаты участия студентов, подготовленных данным преподавателем или в творческой группе совместно с другими преп. в конкурсах, соревнованиях ","Кто, когда, результат, уровень, грамоты, дипломы, ссылка"]
[5.4,"Подготовка студентов к участию в конференциях любого уровня ","Кто, когда, где, тема, уровень."]
["6. НАГРАДЫ, ПООЩРЕНИЯ ЗА УСПЕХИ В ПРОФЕССИОНАЛЬНОЙ ДЕЯТЕЛЬНОСТИ"]
[6.1,"Грамоты, благодарности, благодарственные письма","Копии, перечень, уровень, год, ссылка"]
[6.2,"Премии Правительства, награды","Сертификат, удостоверение, ссылка"]

{"sheet":"Лист1 (2)","index":2,"n_rows":97,"n_cols":5,"rows_kept":97,"cut":false,"hidden":true,"merged":[[20,0,20,4],[28,0,28,4],[43,1,43,4],[21,1,21,4],[26,1,26,4],[26,0,27,0],[33,1,33,4],[29,1,29,4],[29,0,30,0],[31,1,31,4],[31,0,32,0],[33,0,36,0],[37,1,37,4],[37,0,41,0],[43,0,49,0],[1,0,1,4],[9,0,9,4],[2,0,8,0],[10,1,10,4],[10,0,12,0],[13,1,13,4],[13,0,15,0],[16,1,16,4],[16,0,17,0],[18,1,18,4],[18,0,19,0],[62,1,62,4],[56,0,61,0],[62,0,63,0],[50,1,50,4],[50,0,54,0],[55,1,55,4],[64,1,64,4],[64,0,66,0],[76,1,76,3],[76,0,84,0],[85,0,87,0],[85,1,86,2],[67,0,67,4],[68,1,68,3],[71,1,71,3],[71,0,75,0],[85,4,86,4],[88,0,88,3],[89,1,89,3],[92,1,92,3],[89,0,91,0],[92,0,96,0]]}
["№","Структура файла","Содержание","Оценка","  Отв. за заполнение"]
["1. ОБЩИЕ СВЕДЕНИЯ  О ПРЕПОДАВАТЕЛЕ"]
[1.1000000000000001,"ФИО"]
[null,"Преподаваемые дисциплины"]
[null,"ПЦК"]
[null,"Образование"]
[null,"Стаж"]
[null,"Научная степень"]
[null,"Должность"]
["2. МЕТОДИЧЕСКАЯ РАБОТА"]
[2.1,"Результаты работы над методической темой  (разработка метод. темы,  проект, лаборатория)"]
[null,"Результаты работы над методической темой  (разработка метод. темы) Название, роль, функции, документ, ссылка"]
[null,"Результаты участия в проекте, лаборатории. Название, роль, функции, документ, ссылка"]
[2.2000000000000002,"Повышение квалификации (в какой области, место, время, сертификат)."]
[null,"Повышение квалификации: курсы пользователя ПК  (место, время, сертификат, ссылка)"]
[null,"Повышение квалификации (в какой области, место, время, сертификат, ссылка)"]
[2.2999999999999998,"Результаты оценки качества открытого занятия (на основе отзыва эксперта по аттестации)"]
[null,"Результаты оценки качества открытого занятия (на основе отзыва эксперта по аттестации). Название, отзыв, ссылка"]
[2.4,"Результаты мониторинга \"удовлетворенности потребителей\" образовательных услуг, проведенного по утвержденной методике"]
[null,"Результаты мониторинга \"удовлетворенности потребителей\" образовательных услуг, проведенного по утвержденной методике"]
["3. ВЛАДЕНИЕ СОВРЕМЕННЫМИ ОБРАЗОВАТЕЛЬНЫМИ ТЕХНОЛОГИЯМИ И МЕТОДИКАМИ"]
[null,"Результаты использования современных технологий, нетрадиционных видов работы, исследовательских методов обучения, электронных ресурсов, элементов дистанционного обучения в образовательном процессе "]
[3.1,"Результаты использования современных технологий, нетрадиционных видов работы, исследовательских методов обучения в образовательном процессе. Название технологии, вид нетрадиционной деятельности, предмет, курс, тема, ссылка."]
[null,"Результаты использования лицензионных электронных ресурсов в образовательном процессе. Название, предмет, курс, тема, ссылка. "]
[null,"Результаты использования электронных ресурсов, созданных самостоятельно в образовательном процессе.Нназвание, предмет, курс, тема, ссылка. "]
[null,"Результаты использования элементов дистанционного обучения в образовательном процессе (собственный сайт, страница). Название сайта, предмет, курс, тема, ссылка. "]
[3.2,"Проведение открытых занятий в декаду инноватики, метод. неделю, ведение секции на Некрасовских чтениях  (когда, название)"]
[null,"Проведение открытых занятий в декаду инноватики, метод. неделю, ведение секции на Некрасовских чтениях  (когда, название). Тема, технология, сертификат, ссылка"]
["4. ВКЛАД В ПОВЫШЕНИЕ КАЧЕСТВА ОБРАЗОВАНИЯ, РАСПРОСТРАНЕНИЕ  СОБСТВЕННОГО ОПЫТА"]
[4.0999999999999996,"Участие  в реализации ОЭР, образовательной программы ресурсного центра"]
[null,"Участие  в реализации ОЭР, образовательной программы ресурсного центра (функции преподавателя). Приказ, распоряжение, материалы, ссылка"]
[4.2,"Тьюторское сопровождение"]
[null,"Тьюторское сопровождение. Приказ, распоряжение, ссылка"]
[4.3,"Публикации статей, собственных методических разработок "]
[null,"Публикации статей, собственных методических разработок районного уровня. Количество, список по форме за последний год, ссылка"]
[null,"Публикации статей, собственных методических разработок городского уровня. Количество, список по форме за последний год, ссылка"]
[null,"Публикации статей, собственных методических разработок всероссийского уровня. Количество, список по форме за последний год, ссылка"]
[4.4000000000000004,"Защита диссертации, второе высшее образование"]
[null,"Защита диссертации доктора наук"]
[null,"Защита диссертации кандидата наук"]
[null,"Магистр наук"]
[null,"Второе высшее образование"]
[]
[4.5,"Разработка  учебно-методического обеспечения образовательного процесса (кейсы для ДО, тесты, пособия) и участие в фестивале методических пособий"]
[null,"Разработка программ"]
[null,"Коррекция программ"]
[null,"Разработка УМК "]
[null,"Разработка пособий"]
[null,"Разработка тестов"]
[null,"Участие в фестивале методических пособий"]
[4.5999999999999996,"Выступления на научно-практических  конференциях, семинарах разного уровня,  секциях, круглых столах, проведение мастер-классов, семинаров, ведение секций."]
[null,"Районного уровня"]
[null,"Городского уровня"]
[null,"Всероссийского/международного уровня"]
[null,"Ведение секций"]
[null,"Результаты участия в профессиональных конкурсах "]
[4.7,"Лауреат/дипломант районного уровня. Когда, где, название, результат, сертификат, ссылка."]
[null,"Лауреат/дипломант городскогоо уровня. Когда, где, название, результат, сертификат, ссылка."]
[null,"Лауреат/дипломант СЗ. Фед. Округа. Когда, где, название, результат, сертификат, ссылка."]
[null,"Лауреат/дипломант всероссийского уровня. Когда, где, название, результат, сертификат, ссылка."]
[null,"Лауреат/дипломант международного уровня. Когда, где, название, результат, сертификат, ссылка."]
[null,"Лауреат/дипломант конкурса, проводимого Минобрнауки РФ. Когда, где, название, результат, сертификат, ссылка. "]
[4.8,"Общественная активность педагога"]
[null,"Общественная активность педагога  (участие в СНО, СПА, ученом совете, методическом совете, экспертном совете, творческой группе, председатель ПЦК, совете колледжа). Копии приказов, распоряжений , ссылка"]
[4.9000000000000004,"Исполнение функций наставника, куратора группы "]
[null,"Исполнение функций наставника"]
[null,"Исполнение функций куратора группы "]
["5. РЕЗУЛЬТАТЫ ОСВОЕНИЯ ОБУЧАЮЩИМИСЯ ОБРАЗОВАТЕЛЬНЫХ ПРОГРАММ"]
[5.0999999999999996,"Качество знаний обучающихся по результатам ГИА (экзамены, ВКР) и внешний мониторинг"]
[null,"Качество знаний обучающихся по результатам ГИА (экзамены, ВКР) "]
[null,"Качество знаний обучающихся по результатам внешнего мониторинга"]
[5.2,"Результаты участия студентов, подготовленных данным преподавателем или в творческой группе совместно с другими преп.  в предметных олимпиадах"]
[null,"Победители/призеры районный уровень. Кто, когда, результат, подтверждение, ссылка"]
[null,"Победители/призеры городской уровень. Кто, когда, результат, подтверждение, ссылка"]
[null,"Победители/призеры всероссийский уровень. Кто, когда, результат, подтверждение, ссылка"]
[null,"Победители/призеры  международный уровень. Кто, когда, результат, подтверждение, ссылка"]
[5.3,"Результаты участия студентов, подготовленных данным преподавателем или в творческой группе совместно с другими преп. в конкурсах, соревнованиях "]
[null,"Лауреат/дипломант районного уровня. Кто, когда, результат, грамоты, дипломы, ссылка."]
[null,"Лауреат/дипломант городского уровня. Кто, когда, результат, грамоты, дипломы, ссылка"]
[null,"Лауреат/дипломант всероссийского уровня. Кто, когда, результат, грамоты, дипломы, ссылка"]
[null,"Лауреат/дипломант международного уровня. Кто, когда, результат, грамоты, дипломы, ссылка"]
[null,"Победители/призеры районный уровень. Кто, когда, результат, грамоты, дипломы, ссылка"]
[null,"Победители/призеры городской уровень. Кто, когда, результат, грамоты, дипломы, ссылка"]
[null,"Победители/призеры всероссийский уровень. Кто, когда, результат, грамоты, дипломы, ссылка"]
[null,"Победители/призеры  международный уровень. Кто, когда, результат, грамоты, дипломы, ссылка"]
[5.4,"Подготовка студентов к участию в конференциях любого уровня "]
[null,null,null,"Кол-во студентов"]
[null,"Подготовка студентов к участию в конференциях любого уровня. Кто, когда, где, тема, уровень. "]
["6. НАГРАДЫ, ПООЩРЕНИЯ ЗА УСПЕХИ В ПРОФЕССИОНАЛЬНОЙ ДЕЯТЕЛЬНОСТИ"]
[6.1,"Грамоты, благодарности, благодарственные письма"]
[null,"Грамоты, благодарности, благодарственные письма региональный уровень. Копии, перечень, уровень, год, ссылка"]
[null,"Грамоты, благодарности, благодарственные письма ведомственный уровень. Копии, перечень, уровень, год, ссылка"]
[6.2,"Премии Правительства, награды"]
[null,"Премии Правительства. Сертификат, удостоверение, ссылка"]
[null,"Награды региональные. Сертификат, удостоверение, ссылка"]
[null,"Награды ведомственные. Сертификат, удостоверение, ссылка"]
[null,"Награды государственные. Сертификат, удостоверение, ссылка"]

{"sheet":"Личный файл","index":3,"n_rows":167,"n_cols":22,"rows_kept":167,"cut":false,"hidden":false,"merged":[[3,9,9,9],[3,11,9,11],[3,12,9,12],[3,13,9,13],[120,0,124,0],[120,1,124,1],[3,3,9,3],[3,4,9,4],[3,5,9,5],[3,7,9,7],[130,0,134,0],[111,0,116,0],[111,1,116,1],[117,0,119,0],[117,1,119,1],[106,0,109,0],[0,0,1,0],[152,14,152,17],[152,18,152,21],[157,0,160,0],[157,1,160,1],[110,6,110,9],[110,10,110,13],[110,14,110,17],[34,0,44,0],[34,1,44,1],[110,18,110,21],[130,1,134,1],[135,2,135,5],[135,6,135,9],[135,10,135,13],[135,14,135,17],[135,18,135,21],[125,1,129,1],[2,18,2,21],[51,18,51,21],[143,0,146,0],[143,1,146,1],[93,0,97,0],[93,1,97,1],[136,0,139,0],[136,1,139,1],[140,0,142,0],[140,1,142,1],[10,6,10,9],[0,2,0,5],[0,6,0,9],[0,10,0,13],[2,10,2,13],[51,14,51,17],[0,14,0,17],[10,10,10,13],[10,14,10,17],[3,8,9,8],[0,18,0,21],[152,6,152,9],[152,10,152,13],[10,18,10,21],[2,2,2,5],[10,2,10,5],[51,2,51,5],[51,10,51,13],[2,6,2,9],[2,14,2,17],[88,0,92,0],[147,0,151,0],[147,1,151,1],[153,0,156,0],[153,1,156,1],[161,0,164,0],[161,1,164,1],[101,0,105,0],[101,1,105,1],[125,0,129,0],[67,0,71,0],[67,1,71,1],[72,0,76,0],[72,1,76,1],[77,0,86,0],[77,1,86,1],[28,2,28,5],[46,1,50,1],[29,1,33,1],[152,2,152,5],[88,1,92,1],[110,2,110,5],[98,1,100,1],[106,1,109,1],[57,1,66,1],[46,0,50,0],[26,1,27,1],[18,0,21,0],[22,1,25,1],[26,0,27,0],[18,1,21,1],[29,0,33,0],[28,14,28,17],[28,18,28,21],[52,0,56,0],[52,1,56,1],[51,6,51,9],[3,0,9,0],[11,1,13,1],[14,0,17,0],[14,1,17,1],[11,0,13,0],[3,20,9,20],[3,21,9,21],[57,0,66,0],[98,0,100,0],[3,15,9,15],[3,16,9,16],[3,17,9,17],[3,19,9,19],[28,6,28,9],[28,10,28,13]]}
["№",null,"2014/2015 учебный год",null,null,null,"2015/2016 учебный год",null,null,null,"2016/2017 учебный год",null,null,null,"2017/2018 учебный год",null,null,null,"2018/2019 учебный год"]
[null,"Структура файла","Содержание","Оценка      ","Баллы по эффектив-ному контракту \n1 семестр ","Баллы по эффектив-ному контракту \n2 семестр ","Содержание","Оценка      ","     Баллы по эффектив-ному контракту \n1 семестр ","     Баллы по эффектив-ному контракту \n2 семестр ","Содержание","Оценка      ","     Баллы по эффектив-ному контракту \n1 семестр ","     Баллы по эффектив-ному контракту \n2 семестр ","Содержание","Оценка      ","     Баллы по эффектив-ному контракту \n1 семестр ","     Баллы по эффектив-ному контракту \n2 семестр ","Содержание","Оценка      ","Баллы по эффективно-му контракту \n1 семестр "," Баллы по эффективно-му контракту \n2 семестр "]
[1,null,"ОБЩИЕ СВЕДЕНИЯ  О ПРЕПОДАВАТЕЛЕ",null,null,null,"1. ОБЩИЕ СВЕДЕНИЯ  О ПРЕПОДАВАТЕЛЕ",null,null,null,"1. ОБЩИЕ СВЕДЕНИЯ  О ПРЕПОДАВАТЕЛЕ",null,null,null,"1. ОБЩИЕ СВЕДЕНИЯ  О ПРЕПОДАВАТЕЛЕ",null,null,null,"1. ОБЩИЕ СВЕДЕНИЯ  О ПРЕПОДАВАТЕЛЕ"]
["1.1","ФИО"," ","не оценивается","не оценивается","не оценивается",{"$f":"C4","v":" "},"не оценивается","не оценивается","не оценивается",{"$f":"C4","v":" "},"не оценивается","не оценивается","не оценивается",{"$f":"C4","v":" "},"не оценивается","не оценивается","не оценивается",{"$f":"C4","v":" "},"не оценивается","не оценивается","не оценивается"]
[null,"Преподаваемые дисциплины"," ",null,null,null," ",null,null,null," ",null,null,null," ",null,null,null," "]
[null,"ПЦК"," ",null,null,null," ",null,null,null," ",null,null,null," ",null,null,null," "]
[null,"Образование"," ",null,null,null," ",null,null,null," ",null,null,null," ",null,null,null," "]
[null,"Педагогический стаж"," ",null,null,null," ",null,null,null," ",null,null,null," ",null,null,null," "]
[null,"Научная степень"," ",null,null,null," ",null,null,null," ",null,null,null," ",null,null,null," "]
[null,"Должность"," ",null,null,null," ",null,null,null," ",null,null,null," ",null,null,null," "]
[2,null,"ПРОВЕДЕНИЕ ИССЛЕДОВАТЕЛЬСКОЙ, ИННОВАЦИОННОЙ, \nНАУЧНО-МЕТОДИЧЕСКОЙ ДЕЯТЕЛЬНОСТИ",null,null,null,{"$f":"$C$11","v":"ПРОВЕДЕНИЕ ИССЛЕДОВАТЕЛЬСКОЙ, ИННОВАЦИОННОЙ, \nНАУЧНО-МЕТОДИЧЕСКОЙ ДЕЯТЕЛЬНОСТИ"},null,null,null,{"$f":"$C$11","v":"ПРОВЕДЕНИЕ ИССЛЕДОВАТЕЛЬСКОЙ, ИННОВАЦИОННОЙ, \nНАУЧНО-МЕТОДИЧЕСКОЙ ДЕЯТЕЛЬНОСТИ"},null,null,null,{"$f":"$C$11","v":"ПРОВЕДЕНИЕ ИССЛЕДОВАТЕЛЬСКОЙ, ИННОВАЦИОННОЙ, \nНАУЧНО-МЕТОДИЧЕСКОЙ ДЕЯТЕЛЬНОСТИ"},null,null,null,{"$f":"$C$11","v":"ПРОВЕДЕНИЕ ИССЛЕДОВАТЕЛЬСКОЙ, ИННОВАЦИОННОЙ, \nНАУЧНО-МЕТОДИЧЕСКОЙ ДЕЯТЕЛЬНОСТИ"}]
["2.1","Результаты работы над методической темой  (разработка метод. темы, проект, лаборатория) Название, роль, функции, документ, гиперссылка"]
[]
[]
["2.2","Реализация дополнительных проектов (экскурсионные программы, групповые и индивидуальные учебно-воспитательные проекты, социальные и спортивно-оздоровительные проекты и др.) Название, роль, функции, документ, гиперссылка"]
[]
[]
[]
["2.3","Участие в коллективных педагогических проектах (в реализации программы развития ОУ, воспитательно-просветительских мероприятиях и др.). Название, статус участия, уровень, документ, гиперссылка"]
[]
[]
[]
["2.4","Участие  в реализации ОЭР, исследовательской деятельности,  образовательной программы ресурсного центра (функции преподавателя). Приказ, распоряжение, материалы, гиперссылка"]
[]
[]
[]
["2.5","Результаты оценки качества открытого занятия (на основе отзыва эксперта по аттестации). Название, отзыв, гиперссылка.          "]
[]
[3,null," ВЛАДЕНИЕ СОВРЕМЕННЫМИ ОБРАЗОВАТЕЛЬНЫМИ ТЕХНОЛОГИЯМИ И МЕТОДИКАМИ",null,null,null,"ВЛАДЕНИЕ СОВРЕМЕННЫМИ ОБРАЗОВАТЕЛЬНЫМИ ТЕХНОЛОГИЯМИ И МЕТОДИКАМИ",null,null,null,"ВЛАДЕНИЕ СОВРЕМЕННЫМИ ОБРАЗОВАТЕЛЬНЫМИ ТЕХНОЛОГИЯМИ И МЕТОДИКАМИ",null,null,null,"ВЛАДЕНИЕ СОВРЕМЕННЫМИ ОБРАЗОВАТЕЛЬНЫМИ ТЕХНОЛОГИЯМИ И МЕТОДИКАМИ",null,null,null,"ВЛАДЕНИЕ СОВРЕМЕННЫМИ ОБРАЗОВАТЕЛЬНЫМИ ТЕХНОЛОГИЯМИ И МЕТОДИКАМИ"]
["3.1","Использование современных технологий, нетрадиционных видов работы, исследовательских методов обучения в образовательном процессе. Название технологии, вид нетрадиционной деятельности, предмет, курс, тема, гиперссылка."]
[]
[]
[]
[]
["3.2","Использование  электронных ресурсов (лицензионных, созданных самостоятельно, сайт, страница на сайте ОУ) в образовательном процессе. Название, предмет, курс, тема, гиперссылка.  "]
[]
[]
[]
[]
[]
[]
[]
[]
[]
[]
["3.3","Использование элементов дистанционного обучения в образовательном процессе (сайт, страница на сайте ОУ). Название сайта, предмет, курс, тема, гиперссылка. "]
["3.4","Проведение открытых занятий, семинаров, мастер-классов. дистанционного обучения в образовательном процессе. Дата, тема, технология, сертификат, гиперссылка"]
[]
[]
[]
[]
[4,null," ВКЛАД В ПОВЫШЕНИЕ КАЧЕСТВА ОБРАЗОВАНИЯ, РАСПРОСТРАНЕНИЕ  ПЕРЕДОВОГО ПЕДАГОГИЧЕСКОГО ОПЫТА",null,null,null," ВКЛАД В ПОВЫШЕНИЕ КАЧЕСТВА ОБРАЗОВАНИЯ, РАСПРОСТРАНЕНИЕ  СОБСТВЕННОГО ОПЫТА",null,null,null," ВКЛАД В ПОВЫШЕНИЕ КАЧЕСТВА ОБРАЗОВАНИЯ, РАСПРОСТРАНЕНИЕ  СОБСТВЕННОГО ОПЫТА",null,null,null," ВКЛАД В ПОВЫШЕНИЕ КАЧЕСТВА ОБРАЗОВАНИЯ, РАСПРОСТРАНЕНИЕ  СОБСТВЕННОГО ОПЫТА",null,null,null," ВКЛАД В ПОВЫШЕНИЕ КАЧЕСТВА ОБРАЗОВАНИЯ, РАСПРОСТРАНЕНИЕ  СОБСТВЕННОГО ОПЫТА"]
["4.1","Тьюторское сопровождение. Приказ, распоряжение, гиперссылка",null,null,null,null,null,null,null,null,null,null,null,{"$f":"5*L53","v":0}]
[]
[]
[]
[]
["4.2","Публикации статей, собственных методических разработок. Количество, список по форме за последний год, гиперссылка. "]
[]
[]
[]
[]
[]
[]
[]
[]
[]
["4.3","Участие педагога в разработке и реализации основной образовательной программы. Программы учебных дисциплин, профессиональных модулей, гиперссылка"]
[]
[]
[]
[]
["4.4","Создание на печатной основе учебно-методических пособий, учебников, УМК. Учебно-методические материалы (название, назначение), гиперссылка"]
[]
[]
[]
[]
["4.5","Разработка  учебно-методического обеспечения образовательного процесса (КОС, кейсы для ДО, КИМы, тесты, пособия, электронные учебные пособия) и участие в фестивале методических пособий. Учебно-методические материалы (название, назначение). гиперссылка"]
[]
[]
[]
[]
[]
[]
[]
[]
[]
["4.6","Создание элементов образовательной инфраструктуры (оформление и содержательное наполнение кабинета, мастерской, музея и пр.). ТК оценки кабинета, документальное подтверждение участия.  гиперссылка\n "]
["4.7","Выступления на научно-практических  конференциях, семинарах разного уровня,  секциях, круглых столах, проведение мастер-классов, семинаров, ведение секций. Когда, где, название, уровень, тема выступления, сертификат, гиперссылка"]
[]
[]
[]
[]
["4.8","Общественная активность педагога  (участие в СНО, СПА, ученом совете, методическом совете, экспертном совете, творческой группе, председатель ПЦК, совете колледжа). Копии приказов, распоряжений , гиперссылка"]
[]
[]
[]
[]
["4.9","Исполнение функций наставника, куратора группы. Копия локального акта, гиперссылка "]
[]
[]
["4.10","Реализация мероприятий, обеспечивающих взаимодействие с родителями обучающихся. Планы работы, отчет, конспект мероприятия, гиперссылка"]
[]
[]
[]
[]
["4.11","Работа с обучающимися «группы риска». Копии приказов, распоряжений, статистика по колледжу гиперссылка"]
[]
[]
[]
[5,null," РЕЗУЛЬТАТЫ ОСВОЕНИЯ ОБУЧАЮЩИМИСЯ ОБРАЗОВАТЕЛЬНЫХ ПРОГРАММ",null,null,null," РЕЗУЛЬТАТЫ ОСВОЕНИЯ ОБУЧАЮЩИМИСЯ ОБРАЗОВАТЕЛЬНЫХ ПРОГРАММ",null,null,null," РЕЗУЛЬТАТЫ ОСВОЕНИЯ ОБУЧАЮЩИМИСЯ ОБРАЗОВАТЕЛЬНЫХ ПРОГРАММ",null,null,null," РЕЗУЛЬТАТЫ ОСВОЕНИЯ ОБУЧАЮЩИМИСЯ ОБРАЗОВАТЕЛЬНЫХ ПРОГРАММ",null,null,null," РЕЗУЛЬТАТЫ ОСВОЕНИЯ ОБУЧАЮЩИМИСЯ ОБРАЗОВАТЕЛЬНЫХ ПРОГРАММ"]
["5.1","Динамика  индивидуальных достижений, уровень освоения обучающимися учебных программ :\n - результаты  контрольных  мероприятий (Sanruv)\n- промежуточная аттестация (второй семестр)\n- итоговая  аттестация (ГИА, ВКР).\n- внешний мониторинг.\nЗаполненная таблица «Результативность учебной работы»\nКопии приказов, распоряжений об участии во внешнем мониторинге.\nГиперссылка\n\n"]
[]
[]
[]
[]
[]
["5.2","Результаты мониторинга \"удовлетворенности потребителей\" образовательных услуг, проведенного по утвержденной методике (группы, предмет). Удовлетворенность студентов:\n• содержанием учебного процесса;\n• методикой преподавания;\n• психологическим климатом.\n"]
[]
[]
["5.3","Результаты участия студентов, подготовленных данным преподавателем или в творческой группе совместно с другими преподавателями в предметных олимпиадах. Кто, когда, результат, уровень, подтверждение, гиперссылка."]
[]
[]
[]
[]
["5.4","Результаты участия студентов, подготовленных данным преподавателем или в творческой группе совместно с другими преп. в конкурсах, соревнованиях.  Кто, когда, результат, уровень, грамоты, дипломы, гиперссылка"]
[]
[]
[]
[]
["5.5","Подготовка студентов к участию в конференциях любого уровня.  Кто, когда, где, тема, уровень. Гиперссылка"]
[]
[]
[]
[]
[6,null," УРОВЕНЬ ПРОФЕССИОНАЛЬНОГО МАСТЕРСТВА ПЕДАГОГА ",null,null,null," УРОВЕНЬ ПРОФЕССИОНАЛЬНОГО МАСТЕРСТВА ПЕДАГОГА ",null,null,null," УРОВЕНЬ ПРОФЕССИОНАЛЬНОГО МАСТЕРСТВА ПЕДАГОГА ",null,null,null," УРОВЕНЬ ПРОФЕССИОНАЛЬНОГО МАСТЕРСТВА ПЕДАГОГА ",null,null,null," УРОВЕНЬ ПРОФЕССИОНАЛЬНОГО МАСТЕРСТВА ПЕДАГОГА "]
["6.1","Результаты участия в профессиональных конкурсах. Когда, где, название, результат, сертификат, гиперссылка"]
[]
[]
[]
["6.2","Защита диссертации, второе высшее образование"]
[]
[]
["6.3","Повышение квалификации (в какой области, место, время, сертификат). Название, место, время, сертификат, гиперссылка"]
[]
[]
[]
["6.4","Повышение педагогического мастерства в форме участия в семинарах, круглых столах и т.д. Название, место, время, сертификат, гиперссылка"]
[]
[]
[]
[]
[7,null," НАГРАДЫ, ПООЩРЕНИЯ ЗА УСПЕХИ В ПРОФЕССИОНАЛЬНОЙ ДЕЯТЕЛЬНОСТИ",null,null,null," НАГРАДЫ, ПООЩРЕНИЯ ЗА УСПЕХИ В ПРОФЕССИОНАЛЬНОЙ ДЕЯТЕЛЬНОСТИ",null,null,null," НАГРАДЫ, ПООЩРЕНИЯ ЗА УСПЕХИ В ПРОФЕССИОНАЛЬНОЙ ДЕЯТЕЛЬНОСТИ",null,null,null," НАГРАДЫ, ПООЩРЕНИЯ ЗА УСПЕХИ В ПРОФЕССИОНАЛЬНОЙ ДЕЯТЕЛЬНОСТИ",null,null,null," НАГРАДЫ, ПООЩРЕНИЯ ЗА УСПЕХИ В ПРОФЕССИОНАЛЬНОЙ ДЕЯТЕЛЬНОСТИ"]
["7.1","Грамоты, благодарности, благодарственные письма. Копии, перечень, уровень, год, гиперссылка. "]
[]
[]
[]
["7.2","Премии Правительства Санкт-Петербурга. Сертификат, удостоверение, гиперссылка. "]
[]
[]
[]
["7.3","Награды за успехи в профессиональной деятельности. Сертификат, удостоверение, гиперссылка. "]
[]
[]
[]
["7.4","Трудовая дисциплина"]
[null,null,"Итого баллов     ",{"$f":"SUM(D12:D28,D30:D51,D53:D110,D112:D135,D137:D152,D154:D166)","v":0},{"$f":"SUM(E12:E28,E30:E51,E53:E110,E112:E135,E137:E152,E154:E166)","v":0},{"$f":"SUM(F12:F28,F30:F51,F53:F110,F112:F135,F137:F152,F154:F166)","v":0},"Итого баллов     ",{"$f":"SUM(H12:H28,H30:H51,H53:H110,H112:H135,H137:H152,H154:H166)","v":0},{"$f":"SUM(I12:I28,I30:I51,I53:I110,I112:I135,I137:I152,I154:I166)","v":0},{"$f":"SUM(J12:J28,J30:J51,J53:J110,J112:J135,J137:J152,J154:J166)","v":0},"Итого баллов     ",{"$f":"SUM(L4:L10,L12:L28,L30:L51,L53:L110,L112:L135,L137:L152,L154:L166)","v":0},{"$f":"SUM(M4:M10,M12:M28,M30:M51,M53:M110,M112:M135,M137:M152,M154:M166)","v":0},{"$f":"SUM(N4:N10,N12:N28,N30:N51,N53:N110,N112:N135,N137:N152,N154:N166)","v":0},"Итого баллов     ",{"$f":"SUM(P12:P28,P30:P51,P53:P110,P112:P135,P137:P152,P154:P166)","v":0},{"$f":"SUM(Q12:Q28,Q30:Q51,Q53:Q110,Q112:Q135,Q137:Q152,Q154:Q166)","v":0},{"$f":"SUM(R12:R28,R30:R51,R53:R110,R112:R135,R137:R152,R154:R166)","v":0},"Итого баллов     ",{"$f":"SUM(T12:T28,T30:T51,T53:T110,T112:T135,T137:T152,T154:T166)","v":0},{"$f":"SUM(U12:U28,U30:U51,U53:U110,U112:U135,U137:U152,U154:U166)","v":0},{"$f":"SUM(V12:V28,V30:V51,V53:V110,V112:V135,V137:V152,V154:V166)","v":0}]